[Event "Istanbul Open 2019"]
[Site "Istanbul"]
[Date "2019.08.27"]
[Round "3.6"]
[White "Aliakbarov, Anar"]
[Black "Demirbas, Emre"]
[Result "1/2-1/2"]
[ECO "D30"]
[WhiteElo "2265"]
[BlackElo "1879"]
[Annotator "NA"]
[PlyCount "48"]
[EventDate "2019.08.26"]
[EventType "swiss"]
[EventCountry "TUR"]
[SourceTitle "playchess.com"]
[Source "ChessBase"]
[SourceQuality "1"]
[TimeControl "5400+30"]

1. d4 {[%emt 0:00:30]} d5 {[%emt 0:00:30]} 2. c4 {[%emt 0:00:30]} c6 {[%emt 0:00:30]} 3. Nf3 {[%emt 0:00:30]} Nf6 {[%emt 0:00:00]} 4. e3 {[%emt 0:00:30]} e6 {[%emt 0:00:00]} 5. Nbd2 {[%emt 0:00:30]} Nbd7 {[%emt 0:00:00]} 6. b3 {[%emt 0:00:00]} Bd6 {[%emt 0:00:00]} 7. Bb2 {[%emt 0:00:00]} Qe7 {[%emt 0:00:30]} 8. Ne5 {[%emt 0:02:30]} Ba3 {[%emt 0:00:00]} 9. Bc3 {[%emt 0:03:30]} Bb4 {[%emt 0:03:00]} 10. Bxb4 {[%emt 0:02:30]} Qxb4 {[%emt 0:00:30]} 11. Nd3 {[%emt 0:00:30]} Qd6 {[%emt 0:04:30]} 12. c5 {[%emt 0:01:30]} Qc7 {[%emt 0:00:30]} 13. f4 {[%emt 0:00:30]} b6 {[%emt 0:07:30]} 14. b4 {[%emt 0:02:30]} a5 {[%emt 0:06:30]} 15. a3 {[%emt 0:02:30]} Ba6 {[%emt 0:03:30]} 16. Be2 {[%emt 0:01:30]} Ne4 {[%emt 0:01:30]} 17. Nxe4 {[%emt 0:04:30]} dxe4 {[%emt 0:00:00]} 18. Nf2 {[%emt 0:03:30]} Bxe2 {[%emt 0:01:00]} 19. Kxe2 {[%emt 0:00:30]} f5 {[%emt 0:02:30]} 20. Qb3 {[%emt 0:00:30]} Ke7 {[%emt 0:00:00]} 21. Rhc1 {[%emt 0:01:30]} b5 {[%emt 0:03:00]} 22. g4 {[%emt 0:15:30]} Nf6 {[%emt 0:04:30]} 23. Rg1 {[%emt 0:00:30]} g6 {[%emt 0:01:30]} 24. h4 {[%emt 0:02:30]} Nd5 {[%emt 0:16:30]} 1/2-1/2

[Event "Istanbul Open 2019"]
[Site "Istanbul"]
[Date "2019.08.27"]
[Round "3.7"]
[White "Eren, Ataberk"]
[Black "Aganazarov, Yagmyr"]
[Result "1-0"]
[ECO "B12"]
[WhiteElo "2254"]
[BlackElo "1976"]
[Annotator "ChessBase"]
[PlyCount "112"]
[EventDate "2019.08.26"]
[EventType "swiss"]
[EventCountry "TUR"]
[SourceTitle "playchess.com"]
[Source "ChessBase"]
[SourceQuality "1"]
[TimeControl "5400+30"]

1. e4 {[%emt 0:01:30]} c6 {[%emt 0:00:30]} 2. d4 {[%emt 0:00:30]} d5 {[%emt 0:00:00]} 3. e5 {[%emt 0:00:30]} Bf5 {[%emt 0:00:00]} 4. Nf3 {[%emt 0:06:30]} e6 {[%emt 0:00:30]} 5. Be2 {[%emt 0:00:00]} Nd7 {[%emt 0:00:30]} 6. O-O {[%emt 0:00:00]} Ne7 {[%emt 0:00:30]} 7. Nbd2 {[%emt 0:08:30]} Nc8 {[%emt 0:02:30]} 8. Nb3 {[%emt 0:01:30]} Be7 {[%emt 0:00:30]} 9. a4 {[%emt 0:00:00]} O-O {[%emt 0:00:30]} 10. a5 {[%emt 0:00:00]} c5 {[%emt 0:04:30]} 11. dxc5 {[%emt 0:01:30]} Bxc5 {[%emt 0:03:30]} 12. Nxc5 {[%emt 0:01:30]} Nxc5 {[%emt 0:00:00]} 13. Be3 {[%emt 0:00:00]} Nd7 {[%emt 0:02:00]} 14. c4 {[%emt 0:11:00]} Be4 {[%emt 0:09:30]} 15. cxd5 {[%emt 0:11:30]} Bxd5 {[%emt 0:01:30]} 16. Qb1 {[%emt 0:12:30]} h6 {[%emt 0:09:30]} 17. Ra4 {[%emt 0:00:30]} Ne7 {[%emt 0:00:30]} 18. Re1 {[%emt 0:13:30]} Ng6 {[%emt 0:05:30]} 19. Bd4 {[%emt 0:02:30]} Nf4 {[%emt 0:07:30]} 20. Bd1 {[%emt 0:01:30]} Qe7 {[%emt 0:09:30]} 21. Bc3 {[%emt 0:00:30]} Ng6 {[%emt 0:00:30]} 22. Rg4 {[%emt 0:00:30]} Rfc8 {[%emt 0:04:30]} 23. h4 {[%emt 0:04:30]} h5 {[%emt 0:04:30]} 24. Rg3 {[%emt 0:00:30]} Nxh4 {[%emt 0:01:30]} 25. Nxh4 {[%emt 0:06:50]} Qxh4 {[%emt 0:00:30]} 26. Ree3 {[%emt 0:00:07]} Nc5 {[%emt 0:15:16]} 27. Rh3 {[%emt 0:01:10]} Qg5 {[%emt 0:01:13]} 28. Reg3 {[%emt 0:00:22]} Be4 {[%emt 0:00:18]} 29. Rxg5 {[%emt 0:02:39]} Bxb1 {[%emt 0:00:30]} 30. Rgxh5 {[%emt 0:00:00]} Kf8 {[%emt 0:01:29]} 31. Bb4 {[%emt 0:00:21]} b6 {[%emt 0:02:12]} 32. Ba3 {[%emt 0:09:36]} Bf5 {[%emt 0:01:57]} 33. axb6 {[%emt 0:00:31]} axb6 {[%emt 0:00:50]} 34. Rh8+ {[%emt 0:00:02]} Ke7 {[%emt 0:00:50]} 35. Rxc8 {[%emt 0:00:30]} Rxc8 {[%emt 0:00:30]} 36. Rb3 {[%emt 0:00:00]} Kd8 {[%emt 0:00:53]} 37. Rxb6 {[%emt 0:00:28]} Nd7 {[%emt 0:00:04]} 38. Rd6 {[%emt 0:00:29]} Rc1 {[%emt 0:00:30]} 39. Kh2 {[%emt 0:00:00]} Kc7 {[%emt 0:00:00]} 40. Rd2 {[%emt 0:00:00]} Nb6 {[%emt 0:04:39]} 41. b3 {[%emt 0:01:09]} Ra1 {[%emt 0:01:51]} 42. Bd6+ {[%emt 0:00:35]} Kc6 {[%emt 0:02:08]} 43. Bh5 {[%emt 0:01:19]} Rb1 {[%emt 0:03:06]} 44. Bxf7 {[%emt 0:01:54]} Rxb3 {[%emt 0:00:40]} 45. Bf8 {[%emt 0:00:09]} Nc4 {[%emt 0:00:00]} 46. Be8+ {[%emt 0:00:43]} Kb6 {[%emt 0:00:12]} 47. Rd8 {[%emt 0:00:13]} Kc7 {[%emt 0:02:38]} 48. Rd7+ {[%emt 0:00:04]} Kc8 {[%emt 0:00:00]} 49. Bxg7 {[%emt 0:00:46]} Rb2 {[%emt 0:00:00]} 50. Rd4 {[%emt 0:01:53]} Nd2 {[%emt 0:01:23]} 51. Bh5 {[%emt 0:00:16]} Ne4 {[%emt 0:00:57]} 52. f3 {[%emt 0:01:22]} Nd2 {[%emt 0:00:21]} 53. Bh6 {[%emt 0:00:41]} Nf1+ {[%emt 0:00:47]} 54. Kg1 {[%emt 0:00:30]} Ng3 {[%emt 0:00:00]} 55. Rc4+ {[%emt 0:00:00]} Kd7 {[%emt 0:00:43]} 56. Bg4 {[%emt 0:00:00]} Re2 {[%emt 0:01:33]} 1-0

[Event "Istanbul Open 2019"]
[Site "Istanbul"]
[Date "2019.08.27"]
[Round "3.8"]
[White "Yasin, Hur"]
[Black "Yaran, Siar"]
[Result "0-1"]
[ECO "C44"]
[WhiteElo "1906"]
[BlackElo "2209"]
[Annotator "NA"]
[PlyCount "85"]
[EventDate "2019.08.26"]
[EventType "swiss"]
[EventCountry "TUR"]
[SourceTitle "playchess.com"]
[Source "ChessBase"]
[SourceQuality "1"]
[TimeControl "5400+30"]

1. e4 {[%emt 0:00:30]} e5 {[%emt 0:01:30]} 2. Nf3 {[%emt 0:00:00]} Nc6 {[%emt 0:00:00]} 3. d4 {[%emt 0:01:00]} exd4 {[%emt 0:00:00]} 4. Bc4 {[%emt 0:00:30]} Bc5 {[%emt 0:02:30]} 5. Ng5 {[%emt 0:00:00]} Nh6 {[%emt 0:02:30]} 6. Nxf7 {[%emt 0:00:00]} Nxf7 {[%emt 0:00:30]} 7. Bxf7+ {[%emt 0:00:30]} Kxf7 {[%emt 0:00:30]} 8. Qh5+ {[%emt 0:00:00]} Kf8 {[%emt 0:02:30]} 9. Qxc5+ {[%emt 0:01:00]} d6 {[%emt 0:00:30]} 10. Qc4 {[%emt 0:04:30]} Qe7 {[%emt 0:04:30]} 11. Qe2 {[%emt 0:06:30]} Kf7 {[%emt 0:01:30]} 12. O-O {[%emt 0:06:30]} Rf8 {[%emt 0:14:30]} 13. Nd2 {[%emt 0:03:30]} Kg8 {[%emt 0:02:30]} 14. f4 {[%emt 0:01:30]} d5 {[%emt 0:09:30]} 15. e5 {[%emt 0:15:30]} Bf5 {[%emt 0:04:30]} 16. Nb3 {[%emt 0:00:30]} Qb4 {[%emt 0:22:30]} 17. Rd1 {[%emt 0:00:30]} Rae8 {[%emt 0:12:33]} 18. Qf2 {[%emt 0:20:30]} Be4 {[%emt 0:00:55]} 19. Qe2 {[%emt 0:06:30]} Re6 {[%emt 0:01:14]} 20. g3 {[%emt 0:02:30]} Qb6 {[%emt 0:01:03]} 21. Qf2 {[%emt 0:05:30]} Nxe5 {[%emt 0:00:45]} 22. Nxd4 {[%emt 0:00:30]} Ng4 {[%emt 0:02:15]} 23. Qe2 {[%emt 0:04:03]} Nxh2 {[%emt 0:07:07]} 24. Be3 {[%emt 0:02:06]} Nf3+ {[%emt 0:01:18]} 25. Nxf3 {[%emt 0:01:16]} Bxf3 {[%emt 0:00:03]} 26. Qxf3 {[%emt 0:10:03]} Rxe3 {[%emt 0:00:04]} 27. Qxd5+ {[%emt 0:00:14]} Kh8 {[%emt 0:00:06]} 28. Qd4 {[%emt 0:01:58]} Rxg3+ {[%emt 0:01:18]} 29. Kh2 {[%emt 0:00:13]} Qg6 {[%emt 0:00:12]} 30. Rg1 {[%emt 0:00:36]} Rg4 {[%emt 0:00:28]} 31. Rxg4 {[%emt 0:01:43]} Qxg4 {[%emt 0:00:05]} 32. Rf1 {[%emt 0:01:09]} h6 {[%emt 0:00:25]} 33. Rf2 {[%emt 0:01:14]} Qh4+ {[%emt 0:02:45]} 34. Kg2 {[%emt 0:00:47]} Qg4+ {[%emt 0:02:12]} 35. Kh2 {[%emt 0:00:06]} Rf5 {[%emt 0:00:58]} 36. Qd8+ {[%emt 0:01:59]} Kh7 {[%emt 0:00:30]} 37. Qd3 {[%emt 0:00:00]} Qg6 {[%emt 0:00:00]} 38. Qg3 {[%emt 0:01:03]} Qh5+ {[%emt 0:01:20]} 39. Kg2 {[%emt 0:01:02]} Rf6 {[%emt 0:00:38]} 40. Qd3+ {[%emt 0:01:26]} Rg6+ {[%emt 0:01:13]} 41. Kf1 {[%emt 0:00:41]} Qh1+ {[%emt 0:00:02]} 42. Ke2 {[%emt 0:00:00]} h5 {[%emt 0:00:23]} 43. Qf5 {[%emt 0:01:51]} 0-1

[Event "Istanbul Open 2019"]
[Site "Istanbul"]
[Date "2019.08.27"]
[Round "3.10"]
[White "Onem, Uzay Altay"]
[Black "Nuri, Murad"]
[Result "0-1"]
[ECO "D32"]
[WhiteElo "1997"]
[BlackElo "2291"]
[Annotator "ChessBase"]
[PlyCount "108"]
[EventDate "2019.08.26"]
[EventType "swiss"]
[EventCountry "TUR"]
[SourceTitle "playchess.com"]
[Source "ChessBase"]
[SourceQuality "1"]
[TimeControl "5400+30"]

1. d4 {[%emt 0:00:30]} Nf6 {[%emt 0:01:30]} 2. Nf3 {[%emt 0:00:00]} e6 {[%emt 0:00:30]} 3. c4 {[%emt 0:00:00]} c5 {[%emt 0:00:00]} 4. Nc3 {[%emt 0:05:30]} cxd4 {[%emt 0:05:00]} 5. Nxd4 {[%emt 0:00:30]} Nc6 {[%emt 0:02:30]} 6. e3 {[%emt 0:01:30]} d5 {[%emt 0:00:30]} 7. cxd5 {[%emt 0:00:30]} exd5 {[%emt 0:00:30]} 8. Bb5 {[%emt 0:01:30]} Bd7 {[%emt 0:01:30]} 9. O-O {[%emt 0:00:00]} Bd6 {[%emt 0:01:30]} 10. b3 {[%emt 0:10:00]} O-O {[%emt 0:10:30]} 11. Bb2 {[%emt 0:07:30]} Rc8 {[%emt 0:05:30]} 12. h3 {[%emt 0:06:30]} Qe7 {[%emt 0:10:30]} 13. Bxc6 {[%emt 0:04:30]} bxc6 {[%emt 0:00:00]} 14. Qd3 {[%emt 0:05:30]} Bb8 {[%emt 0:15:00]} 15. Rad1 {[%emt 0:19:30]} Rfe8 {[%emt 0:00:30]} 16. Nc2 {[%emt 0:02:30]} a5 {[%emt 0:03:30]} 17. Ba3 {[%emt 0:01:30]} Qe5 {[%emt 0:00:30]} 18. f4 {[%emt 0:00:00]} Qh5 {[%emt 0:06:30]} 19. Rf3 {[%emt 0:08:00]} Bf5 {[%emt 0:09:30]} 20. Qe2 {[%emt 0:04:30]} Ne4 {[%emt 0:06:28]} 21. Nxe4 {[%emt 0:00:40]} Bxe4 {[%emt 0:01:04]} 22. Rf2 {[%emt 0:00:20]} Qxe2 {[%emt 0:01:31]} 23. Rxe2 {[%emt 0:00:30]} c5 {[%emt 0:00:00]} 24. Bb2 {[%emt 0:04:17]} f6 {[%emt 0:00:22]} 25. Ne1 {[%emt 0:01:19]} h5 {[%emt 0:03:53]} 26. Bc3 {[%emt 0:01:49]} Bc7 {[%emt 0:00:21]} 27. Kf2 {[%emt 0:02:40]} Bb6 {[%emt 0:07:22]} 28. Nf3 {[%emt 0:02:04]} Kf7 {[%emt 0:00:58]} 29. h4 {[%emt 0:04:44]} Rcd8 {[%emt 0:00:39]} 30. Red2 {[%emt 0:01:25]} Ke6 {[%emt 0:00:49]} 31. Kf1 {[%emt 0:01:12]} Kf5 {[%emt 0:00:26]} 32. Rf2 {[%emt 0:00:35]} Re7 {[%emt 0:01:33]} 33. a3 {[%emt 0:01:20]} Kg6 {[%emt 0:02:05]} 34. Re2 {[%emt 0:00:44]} Rc8 {[%emt 0:02:08]} 35. Kf2 {[%emt 0:02:11]} Kf5 {[%emt 0:00:57]} 36. Rc1 {[%emt 0:00:43]} d4 {[%emt 0:01:09]} 37. Bxd4 {[%emt 0:00:52]} Bd3 {[%emt 0:00:42]} 38. Ree1 {[%emt 0:00:40]} cxd4 {[%emt 0:00:49]} 39. Rxc8 {[%emt 0:00:05]} dxe3+ {[%emt 0:00:00]} 40. Kg3 {[%emt 0:00:15]} e2 {[%emt 0:00:08]} 41. Rc3 {[%emt 0:01:05]} Ke4 {[%emt 0:00:42]} 42. Ng1 {[%emt 0:00:51]} Bxg1 {[%emt 0:00:47]} 43. Rxg1 {[%emt 0:00:09]} Ke3 {[%emt 0:00:34]} 44. Rcc1 {[%emt 0:00:26]} Re4 {[%emt 0:00:17]} 45. b4 {[%emt 0:01:24]} axb4 {[%emt 0:00:30]} 46. axb4 {[%emt 0:00:00]} Rxf4 {[%emt 0:00:16]} 47. b5 {[%emt 0:00:25]} Rg4+ {[%emt 0:00:05]} 48. Kh3 {[%emt 0:00:42]} Bxb5 {[%emt 0:00:30]} 49. g3 {[%emt 0:00:00]} Bd3 {[%emt 0:00:47]} 50. Kg2 {[%emt 0:00:00]} Be4+ {[%emt 0:00:04]} 51. Kh2 {[%emt 0:00:05]} Kf2 {[%emt 0:00:35]} 52. Ra1 {[%emt 0:01:35]} Bf3 {[%emt 0:00:20]} 53. Rac1 {[%emt 0:00:44]} Rd4 {[%emt 0:00:09]} 54. Rce1 {[%emt 0:00:13]} Rd1 {[%emt 0:00:29]} 0-1

[Event "Istanbul Open 2019"]
[Site "Istanbul"]
[Date "2019.08.27"]
[Round "3.12"]
[White "Sar, Can"]
[Black "Mohannad, Farhan"]
[Result "1/2-1/2"]
[ECO "B01"]
[WhiteElo "2003"]
[BlackElo "2151"]
[Annotator "NA"]
[PlyCount "100"]
[EventDate "2019.08.26"]
[EventType "swiss"]
[EventCountry "TUR"]
[SourceTitle "playchess.com"]
[Source "ChessBase"]
[SourceQuality "1"]
[TimeControl "5400+30"]

1. e4 {[%emt 0:00:30]} d5 {[%emt 0:00:30]} 2. exd5 {[%emt 0:00:30]} Qxd5 {[%emt 0:00:00]} 3. Nc3 {[%emt 0:00:00]} Qd6 {[%emt 0:00:00]} 4. d4 {[%emt 0:01:00]} Nf6 {[%emt 0:00:30]} 5. Nf3 {[%emt 0:00:30]} c6 {[%emt 0:00:30]} 6. Bc4 {[%emt 0:00:30]} Be6 {[%emt 0:00:30]} 7. Be2 {[%emt 0:01:30]} g6 {[%emt 0:00:30]} 8. Bg5 {[%emt 0:00:30]} Bg7 {[%emt 0:04:30]} 9. Qd2 {[%emt 0:00:30]} Qb4 {[%emt 0:02:30]} 10. O-O {[%emt 0:02:30]} O-O {[%emt 0:02:30]} 11. a3 {[%emt 0:00:30]} Qb6 {[%emt 0:00:30]} 12. Na4 {[%emt 0:00:30]} Qd8 {[%emt 0:00:30]} 13. Nc5 {[%emt 0:00:30]} Bc8 {[%emt 0:00:00]} 14. Bh6 {[%emt 0:00:30]} Nbd7 {[%emt 0:06:00]} 15. Bxg7 {[%emt 0:00:30]} Kxg7 {[%emt 0:00:30]} 16. Nd3 {[%emt 0:00:30]} Qc7 {[%emt 0:07:30]} 17. Nde5 {[%emt 0:03:30]} c5 {[%emt 0:04:30]} 18. Nxd7 {[%emt 0:00:30]} Bxd7 {[%emt 0:00:30]} 19. c3 {[%emt 0:01:30]} Rfd8 {[%emt 0:01:30]} 20. Qg5 {[%emt 0:01:30]} cxd4 {[%emt 0:09:30]} 21. Nxd4 {[%emt 0:00:30]} a6 {[%emt 0:00:30]} 22. Rad1 {[%emt 0:04:30]} e5 {[%emt 0:02:30]} 23. Nf3 {[%emt 0:00:30]} Re8 {[%emt 0:00:30]} 24. Rfe1 {[%emt 0:04:30]} h6 {[%emt 0:07:30]} 25. Qh4 {[%emt 0:03:30]} Bc6 {[%emt 0:00:30]} 26. Qb4 {[%emt 0:03:30]} Nd5 {[%emt 0:01:30]} 27. Qc4 {[%emt 0:07:30]} Nf4 {[%emt 0:01:30]} 28. Bf1 {[%emt 0:00:30]} f6 {[%emt 0:10:30]} 29. g3 {[%emt 0:06:30]} b5 {[%emt 0:00:30]} 30. Qc5 {[%emt 0:00:00]} Ne6 {[%emt 0:00:30]} 31. Qe3 {[%emt 0:00:00]} Rad8 {[%emt 0:00:30]} 32. h4 {[%emt 0:06:30]} h5 {[%emt 0:03:30]} 33. Bh3 {[%emt 0:01:30]} Rxd1 {[%emt 0:03:30]} 34. Rxd1 {[%emt 0:00:30]} Rd8 {[%emt 0:00:30]} 35. Rxd8 {[%emt 0:02:30]} Nxd8 {[%emt 0:00:00]} 36. Nd2 {[%emt 0:02:30]} Qb7 {[%emt 0:05:00]} 37. f3 {[%emt 0:01:30]} Bd5 {[%emt 0:04:30]} 38. Kf2 {[%emt 0:00:30]} Nf7 {[%emt 0:00:30]} 39. Bf1 {[%emt 0:00:30]} f5 {[%emt 0:02:30]} 40. c4 {[%emt 0:02:30]} Bc6 {[%emt 0:00:30]} 41. b4 {[%emt 0:01:30]} Qe7 {[%emt 0:02:14]} 42. f4 {[%emt 0:05:30]} e4 {[%emt 0:01:15]} 43. cxb5 {[%emt 0:01:30]} Bxb5 {[%emt 0:00:09]} 44. Qd4+ {[%emt 0:06:30]} Kh7 {[%emt 0:00:12]} 45. Bxb5 {[%emt 0:01:30]} axb5 {[%emt 0:00:30]} 46. Nf1 {[%emt 0:00:00]} Qe6 {[%emt 0:02:30]} 47. Kg1 {[%emt 0:03:00]} Qa6 {[%emt 0:02:17]} 48. Qc3 {[%emt 0:01:30]} Qd6 {[%emt 0:02:20]} 49. Ne3 {[%emt 0:01:30]} Kg8 {[%emt 0:02:52]} 50. Qc8+ {[%emt 0:00:30]} Kh7 {[%emt 0:01:07]} 1/2-1/2

[Event "Istanbul Open 2019"]
[Site "Istanbul"]
[Date "2019.08.27"]
[Round "3.13"]
[White "Ozbay, Ece"]
[Black "Yarar, Muammer Atakan"]
[Result "0-1"]
[ECO "B11"]
[WhiteElo "2125"]
[BlackElo "1779"]
[Annotator "NA"]
[PlyCount "70"]
[EventDate "2019.08.26"]
[EventType "swiss"]
[EventCountry "TUR"]
[SourceTitle "playchess.com"]
[Source "ChessBase"]
[SourceQuality "1"]
[TimeControl "5400+30"]

1. e4 {[%emt 0:00:30]} c6 {[%emt 0:02:30]} 2. Nc3 {[%emt 0:01:30]} d5 {[%emt 0:00:30]} 3. Nf3 {[%emt 0:02:30]} Bg4 {[%emt 0:00:00]} 4. h3 {[%emt 0:00:00]} Bxf3 {[%emt 0:00:00]} 5. Qxf3 {[%emt 0:00:00]} e6 {[%emt 0:00:00]} 6. e5 {[%emt 0:00:30]} Ne7 {[%emt 0:01:00]} 7. d4 {[%emt 0:01:30]} Qb6 {[%emt 0:03:30]} 8. Qd3 {[%emt 0:04:30]} Nf5 {[%emt 0:06:30]} 9. Ne2 {[%emt 0:02:30]} c5 {[%emt 0:02:30]} 10. c3 {[%emt 0:00:30]} Nc6 {[%emt 0:01:30]} 11. g4 {[%emt 0:02:30]} Nh4 {[%emt 0:00:30]} 12. Bg5 {[%emt 0:03:30]} Be7 {[%emt 0:00:30]} 13. Bxh4 {[%emt 0:02:30]} Bxh4 {[%emt 0:00:00]} 14. Rb1 {[%emt 0:00:30]} cxd4 {[%emt 0:01:00]} 15. cxd4 {[%emt 0:02:30]} Nb4 {[%emt 0:24:30]} 16. Qd2 {[%emt 0:10:30]} Rc8 {[%emt 0:01:30]} 17. Nc3 {[%emt 0:00:30]} Qxd4 {[%emt 0:01:30]} 18. Qxd4 {[%emt 0:03:30]} Nc2+ {[%emt 0:00:30]} 19. Kd2 {[%emt 0:01:30]} Nxd4 {[%emt 0:00:00]} 20. f4 {[%emt 0:00:30]} g5 {[%emt 0:04:00]} 21. Nb5 {[%emt 0:10:30]} Nxb5 {[%emt 0:01:30]} 22. Bxb5+ {[%emt 0:00:00]} Ke7 {[%emt 0:00:30]} 23. Ke3 {[%emt 0:06:00]} gxf4+ {[%emt 0:03:30]} 24. Kxf4 {[%emt 0:00:30]} Rc2 {[%emt 0:02:30]} 25. Bd3 {[%emt 0:00:30]} Rf2+ {[%emt 0:09:30]} 26. Ke3 {[%emt 0:00:30]} Rg2 {[%emt 0:00:30]} 27. Rhf1 {[%emt 0:09:30]} h6 {[%emt 0:04:30]} 28. Be2 {[%emt 0:07:30]} Rc8 {[%emt 0:07:30]} 29. Bd3 {[%emt 0:03:30]} Rh2 {[%emt 0:03:31]} 30. Rh1 {[%emt 0:03:30]} Rxh1 {[%emt 0:02:12]} 31. Rxh1 {[%emt 0:00:00]} Bg3 {[%emt 0:00:00]} 32. h4 {[%emt 0:02:44]} Bxe5 {[%emt 0:00:00]} 33. b3 {[%emt 0:00:00]} Bf6 {[%emt 0:00:18]} 34. Ke2 {[%emt 0:01:32]} e5 {[%emt 0:02:13]} 35. Bb1 {[%emt 0:01:31]} e4 {[%emt 0:01:12]} 0-1

[Event "Istanbul Open 2019"]
[Site "Istanbul"]
[Date "2019.08.27"]
[Round "3.15"]
[White "Elmas, Mustafa"]
[Black "Menekse, Tuncay"]
[Result "0-1"]
[ECO "B07"]
[WhiteElo "1638"]
[BlackElo "1684"]
[Annotator "NA"]
[PlyCount "108"]
[EventDate "2019.08.26"]
[EventType "swiss"]
[EventCountry "TUR"]
[SourceTitle "playchess.com"]
[Source "ChessBase"]
[SourceQuality "1"]
[TimeControl "5400+30"]

1. e4 {[%emt 0:00:30]} d6 {[%emt 0:01:30]} 2. d4 {[%emt 0:00:00]} Nf6 {[%emt 0:00:30]} 3. Nc3 {[%emt 0:00:00]} c6 {[%emt 0:00:30]} 4. Nf3 {[%emt 0:00:30]} Bg4 {[%emt 0:00:00]} 5. h3 {[%emt 0:00:30]} Bxf3 {[%emt 0:00:00]} 6. Qxf3 {[%emt 0:00:30]} Nbd7 {[%emt 0:00:30]} 7. Be3 {[%emt 0:02:30]} e5 {[%emt 0:04:30]} 8. g4 {[%emt 0:00:30]} Qe7 {[%emt 0:01:30]} 9. g5 {[%emt 0:00:30]} Ng8 {[%emt 0:00:30]} 10. d5 {[%emt 0:02:30]} c5 {[%emt 0:00:30]} 11. O-O-O {[%emt 0:02:30]} a6 {[%emt 0:00:30]} 12. h4 {[%emt 0:03:30]} h5 {[%emt 0:02:30]} 13. Bh3 {[%emt 0:02:30]} b5 {[%emt 0:04:30]} 14. Qe2 {[%emt 0:03:30]} g6 {[%emt 0:02:30]} 15. Rhg1 {[%emt 0:15:30]} Bg7 {[%emt 0:01:30]} 16. Rg3 {[%emt 0:04:30]} Rb8 {[%emt 0:04:30]} 17. Bd2 {[%emt 0:09:30]} Qd8 {[%emt 0:00:30]} 18. Nb1 {[%emt 0:00:30]} Ne7 {[%emt 0:00:30]} 19. Ra3 {[%emt 0:01:30]} Ra8 {[%emt 0:12:30]} 20. Rg1 {[%emt 0:10:30]} O-O {[%emt 0:04:30]} 21. Rgg3 {[%emt 0:01:30]} Nc8 {[%emt 0:03:30]} 22. Rgb3 {[%emt 0:10:30]} Ncb6 {[%emt 0:00:30]} 23. Ba5 {[%emt 0:00:30]} Qe7 {[%emt 0:00:30]} 24. Bxd7 {[%emt 0:05:30]} Nxd7 {[%emt 0:04:30]} 25. Nd2 {[%emt 0:01:30]} Rfc8 {[%emt 0:01:30]} 26. Rf3 {[%emt 0:02:33]} Rf8 {[%emt 0:02:30]} 27. c4 {[%emt 0:00:38]} Rfb8 {[%emt 0:02:30]} 28. Rab3 {[%emt 0:05:05]} b4 {[%emt 0:01:30]} 29. a3 {[%emt 0:00:56]} bxa3 {[%emt 0:01:30]} 30. bxa3 {[%emt 0:00:01]} f6 {[%emt 0:03:30]} 31. Bc7 {[%emt 0:01:45]} Rxb3 {[%emt 0:05:30]} 32. Rxb3 {[%emt 0:00:13]} Ra7 {[%emt 0:00:30]} 33. Bb6 {[%emt 0:01:53]} Nxb6 {[%emt 0:05:30]} 34. Rxb6 {[%emt 0:00:05]} fxg5 {[%emt 0:00:30]} 35. hxg5 {[%emt 0:00:33]} Kh7 {[%emt 0:00:30]} 36. Qe3 {[%emt 0:00:43]} Qd8 {[%emt 0:02:30]} 37. Rb3 {[%emt 0:00:47]} Rf7 {[%emt 0:00:30]} 38. f3 {[%emt 0:01:27]} Rf4 {[%emt 0:02:30]} 39. Qg1 {[%emt 0:00:24]} Rf7 {[%emt 0:00:30]} 40. Kd1 {[%emt 0:01:44]} Bf8 {[%emt 0:00:30]} 41. Ke2 {[%emt 0:01:06]} Be7 {[%emt 0:02:30]} 42. Rb7 {[%emt 0:00:10]} Kg7 {[%emt 0:00:30]} 43. Qb1 {[%emt 0:01:09]} Qc8 {[%emt 0:00:30]} 44. Qb6 {[%emt 0:01:13]} Qh3 {[%emt 0:00:30]} 45. Qa7 {[%emt 0:04:04]} Qg2+ {[%emt 0:02:30]} 46. Kd3 {[%emt 0:01:30]} Qxg5 {[%emt 0:00:30]} 47. Qa8 {[%emt 0:01:49]} Qf6 {[%emt 0:01:30]} 48. Qxa6 {[%emt 0:00:52]} h4 {[%emt 0:00:30]} 49. Qb5 {[%emt 0:00:20]} h3 {[%emt 0:00:42]} 50. Qb1 {[%emt 0:01:04]} Qh4 {[%emt 0:01:01]} 51. Qh1 {[%emt 0:00:33]} Qg3 {[%emt 0:00:39]} 52. Ke2 {[%emt 0:00:48]} Bh4 {[%emt 0:02:06]} 53. Rxf7+ {[%emt 0:00:19]} Kxf7 {[%emt 0:00:19]} 54. a4 {[%emt 0:00:59]} Qg2+ {[%emt 0:00:38]} 0-1